[Event "NJSK 2023 Jeugd B"]
[Site "Almelo, Netherlands"]
[Date "2023.05.06"]
[Round "7.6"]
[White "Ritzerveld, Noah"]
[Black "Snijders, Take"]
[Result "1-0"]
[TimeControl "90min/40moves + 30min + 30sec/move"]
[WhiteElo "1776"]
[BlackElo "1851"]

1. e4 {[%clk 01:30:56]} {[%emt 00:00:04]} c6 {[%clk 01:30:58]} {[%emt
00:00:03]} 2. d4 {[%clk 01:31:20]} {[%emt 00:00:06]} d5 {[%clk 01:31:27]} 3.
Nc3 {[%clk 01:31:41]} {[%emt 00:00:08]} dxe4 {[%clk 01:31:56]} {[%emt
00:00:01]} 4. Nxe4 {[%clk 01:32:03]} {[%emt 00:00:09]} Nf6 {[%clk 01:32:26]} 5.
Nxf6+ {[%clk 01:32:20]} {[%emt 00:00:13]} exf6 {[%clk 01:32:55]} 6. c3 {[%clk
01:32:24]} {[%emt 00:00:26]} Bd6 {[%clk 01:33:21]} {[%emt 00:00:03]} 7. Bd3
{[%clk 01:32:41]} {[%emt 00:00:13]} O-O {[%clk 01:33:34]} {[%emt 00:00:17]} 8.
Ne2 {[%clk 01:32:48]} {[%emt 00:00:24]} Re8 {[%clk 01:33:41]} {[%emt 00:00:23]}
9. Qc2 {[%clk 01:31:56]} {[%emt 00:01:22]} h5 {[%clk 01:33:57]} {[%emt
00:00:14]} 10. O-O {[%clk 01:31:42]} {[%emt 00:00:44]} h4 {[%clk 01:33:55]}
{[%emt 00:00:31]} 11. h3 {[%clk 01:32:01]} {[%emt 00:00:11]} Nd7 {[%clk
01:33:30]} {[%emt 00:00:56]} 12. Be3 {[%clk 01:21:50]} {[%emt 00:10:41]} Nf8
{[%clk 01:31:57]} {[%emt 00:02:03]} 13. b4 {[%clk 01:20:10]} {[%emt 00:02:10]}
Be6 {[%clk 01:19:25]} {[%emt 00:13:02]} 14. Rfe1 {[%clk 01:10:08]} {[%emt
00:10:32]} Qd7 {[%clk 01:14:57]} {[%emt 00:04:59]} 15. Nf4 {[%clk 01:06:51]}
{[%emt 00:03:46]} a5 {[%clk 01:08:16]} {[%emt 00:07:12]} 16. a3 {[%clk
01:04:14]} {[%emt 00:03:06]} Qc7 {[%clk 01:05:48]} {[%emt 00:02:57]} 17. Qd2
{[%clk 01:01:47]} {[%emt 00:02:57]} Bd5 {[%clk 01:00:58]} {[%emt 00:05:20]} 18.
c4 {[%clk 00:56:20]} {[%emt 00:05:58]} Be6 {[%clk 00:57:53]} {[%emt 00:03:35]}
19. Rac1 {[%clk 00:38:38]} {[%emt 00:18:12]} Bxf4 {[%clk 00:54:51]} {[%emt
00:03:32]} 20. Bxf4 {[%clk 00:38:45]} {[%emt 00:00:23]} Qd7 {[%clk 00:54:26]}
{[%emt 00:00:55]} 21. bxa5 {[%clk 00:26:01]} {[%emt 00:13:14]} Qd8 {[%clk
00:49:41]} {[%emt 00:05:15]} 22. Qb2 {[%clk 00:22:06]} {[%emt 00:04:24]} Qxa5
{[%clk 00:48:49]} {[%emt 00:01:23]} 23. Qxb7 {[%clk 00:22:08]} {[%emt
00:00:27]} Qxa3 {[%clk 00:43:54]} {[%emt 00:05:26]} 24. Be4 {[%clk 00:19:58]}
{[%emt 00:02:39]} g5 {[%clk 00:39:52]} {[%emt 00:04:32]} 25. Bxc6 {[%clk
00:13:53]} {[%emt 00:06:35]} Rec8 {[%clk 00:40:00]} {[%emt 00:00:23]} 26. Bh2
{[%clk 00:11:41]} {[%emt 00:02:41]} Ra7 {[%clk 00:39:47]} {[%emt 00:00:44]} 27.
Qb1 {[%clk 00:05:15]} {[%emt 00:06:56]} Rxc6 {[%clk 00:37:39]} {[%emt
00:02:38]} 28. d5 {[%clk 00:05:39]} {[%emt 00:00:06]} Rc8 {[%clk 00:35:29]}
{[%emt 00:02:40]} 29. dxe6 {[%clk 00:05:37]} {[%emt 00:00:32]} Nxe6 {[%clk
00:35:54]} {[%emt 00:00:05]} 30. c5 {[%clk 00:02:35]} {[%emt 00:03:32]} Ra6
{[%clk 00:33:36]} {[%emt 00:02:48]} 31. Bd6 {[%clk 00:02:27]} {[%emt 00:00:38]}
Rac6 {[%clk 00:33:55]} {[%emt 00:00:10]} 32. Rxe6 {[%clk 00:01:38]} {[%emt
00:01:19]} fxe6 {[%clk 00:32:40]} {[%emt 00:01:46]} 33. Qg6+ {[%clk 00:02:03]}
{[%emt 00:00:05]} Kh8 {[%clk 00:33:09]} 34. Qxf6+ {[%clk 00:02:26]} {[%emt
00:00:07]} Kh7 {[%clk 00:33:24]} {[%emt 00:00:15]} 35. Qf7+ {[%clk 00:02:38]}
{[%emt 00:00:17]} Kh6 {[%clk 00:33:25]} {[%emt 00:00:29]} 36. Re1 {[%clk
00:02:16]} {[%emt 00:00:53]} e5 {[%clk 00:32:41]} {[%emt 00:01:14]} 37. Qf6+
{[%clk 00:01:07]} {[%emt 00:01:39]} Kh5 {[%clk 00:30:58]} {[%emt 00:02:13]} 38.
Qf7+ {[%clk 00:00:55]} {[%emt 00:00:43]} Kh6 {[%clk 00:31:24]} {[%emt
00:00:03]} 39. Bf8+ {[%clk 00:01:07]} {[%emt 00:00:18]} Rxf8 {[%clk 00:31:44]}
{[%emt 00:00:10]} 40. Qxf8+ {[%clk 00:01:32]} {[%emt 00:00:05]} Kh7 {[%clk
00:30:40]} {[%emt 00:01:34]} 41. Qf5+ {[%clk 00:00:45]} {[%emt 00:01:17]} Kh6
{[%clk 00:30:11]} {[%emt 00:00:59]} 42. Rxe5 {[%clk 00:00:33]} {[%emt
00:00:41]} Qc1+ {[%clk 00:26:36]} {[%emt 00:04:05]} 43. Kh2 {[%clk 00:00:58]}
{[%emt 00:00:05]} Kh5 {[%clk 00:25:57]} {[%emt 00:01:10]} 44. Qh7+ {[%clk
00:00:52]} {[%emt 00:00:36]} Rh6 {[%clk 00:26:19]} {[%emt 00:00:08]} 45. Qf7+
{[%clk 00:01:14]} {[%emt 00:00:07]} Rg6 {[%clk 00:26:42]} {[%emt 00:00:08]} 46.
Re6 {[%clk 00:01:24]} {[%emt 00:00:19]} 1-0

[Event "NJSK 2023 Jeugd B"]
[Site "Almelo, Netherlands"]
[Date "2023.05.06"]
[Round "7.7"]
[White "Ponomarev, Ivan"]
[Black "Knippenberg, Hidde"]
[Result "0-1"]
[TimeControl "90min/40moves + 30min + 30sec/move"]
[WhiteElo "1788"]
[BlackElo "1728"]

1. c4 {[%clk 01:30:58]} {[%emt 00:00:02]} d6 {[%clk 01:30:57]} {[%emt
00:00:03]} 2. g3 {[%clk 01:31:06]} {[%emt 00:00:23]} g6 {[%clk 01:31:20]}
{[%emt 00:00:07]} 3. Bg2 {[%clk 01:31:28]} {[%emt 00:00:07]} Bg7 {[%clk
01:31:45]} {[%emt 00:00:06]} 4. Nc3 {[%clk 01:31:40]} {[%emt 00:00:19]} Nf6
{[%clk 01:31:52]} {[%emt 00:00:22]} 5. d4 {[%clk 01:30:02]} {[%emt 00:02:08]}
Nbd7 {[%clk 01:31:54]} {[%emt 00:00:28]} 6. e4 {[%clk 01:27:35]} {[%emt
00:02:57]} O-O {[%clk 01:32:01]} {[%emt 00:00:24]} 7. Nf3 {[%clk 01:27:43]}
{[%emt 00:00:21]} e5 {[%clk 01:32:15]} {[%emt 00:00:15]} 8. d5 {[%clk
01:26:18]} {[%emt 00:01:56]} Nc5 {[%clk 01:31:18]} {[%emt 00:01:27]} 9. Qc2
{[%clk 01:24:19]} {[%emt 00:02:29]} a5 {[%clk 01:31:41]} {[%emt 00:00:07]} 10.
Be3 {[%clk 01:21:56]} {[%emt 00:02:52]} Nfd7 {[%clk 01:32:06]} {[%emt
00:00:06]} 11. O-O {[%clk 01:20:28]} {[%emt 00:01:58]} f5 {[%clk 01:27:14]}
{[%emt 00:05:23]} 12. Rab1 {[%clk 01:07:05]} {[%emt 00:13:52]} f4 {[%clk
01:21:12]} {[%emt 00:06:32]} 13. gxf4 {[%clk 01:05:37]} {[%emt 00:01:58]} exf4
{[%clk 01:21:36]} {[%emt 00:00:06]} 14. Bd4 {[%clk 01:06:00]} {[%emt 00:00:07]}
Bxd4 {[%clk 01:21:33]} {[%emt 00:00:33]} 15. Nxd4 {[%clk 01:05:44]} {[%emt
00:00:46]} Ne5 {[%clk 01:22:00]} {[%emt 00:00:03]} 16. Nf3 {[%clk 00:50:36]}
{[%emt 00:15:37]} Nxc4 {[%clk 01:16:47]} {[%emt 00:05:43]} 17. Na4 {[%clk
00:37:00]} {[%emt 00:14:06]} Nxa4 {[%clk 01:13:36]} {[%emt 00:03:41]} 18. Qxa4
{[%clk 00:34:27]} {[%emt 00:03:04]} Nb6 {[%clk 01:12:28]} {[%emt 00:01:38]} 19.
Qd4 {[%clk 00:34:01]} {[%emt 00:00:56]} Nd7 {[%clk 01:05:52]} {[%emt 00:07:06]}
20. Rfe1 {[%clk 00:28:42]} {[%emt 00:05:48]} g5 {[%clk 00:57:00]} {[%emt
00:09:23]} 21. h3 {[%clk 00:25:43]} {[%emt 00:03:29]} h5 {[%clk 00:57:22]}
{[%emt 00:00:08]} 22. e5 {[%clk 00:23:51]} {[%emt 00:02:22]} dxe5 {[%clk
00:57:09]} {[%emt 00:00:43]} 23. Nxe5 {[%clk 00:22:44]} {[%emt 00:01:37]} Nxe5
{[%clk 00:57:24]} {[%emt 00:00:15]} 24. Rxe5 {[%clk 00:18:22]} {[%emt
00:04:51]} Qf6 {[%clk 00:44:55]} {[%emt 00:13:00]} 25. Rbe1 {[%clk 00:17:11]}
{[%emt 00:01:41]} Bf5 {[%clk 00:45:04]} {[%emt 00:00:21]} 26. Qc5 {[%clk
00:11:28]} {[%emt 00:06:13]} Rf7 {[%clk 00:42:54]} {[%emt 00:02:39]} 27. Qb5
{[%clk 00:09:50]} {[%emt 00:02:08]} Qb6 {[%clk 00:38:25]} {[%emt 00:04:59]} 28.
Qe2 {[%clk 00:08:18]} {[%emt 00:02:02]} Qg6 {[%clk 00:37:24]} {[%emt 00:01:31]}
29. Be4 {[%clk 00:06:28]} {[%emt 00:02:20]} Raf8 {[%clk 00:36:44]} {[%emt
00:01:10]} 30. f3 {[%clk 00:05:38]} {[%emt 00:01:21]} Qg7 {[%clk 00:35:22]}
{[%emt 00:01:52]} 31. Bxf5 {[%clk 00:05:01]} {[%emt 00:01:06]} Rxf5 {[%clk
00:35:51]} {[%emt 00:00:02]} 32. Rxf5 {[%clk 00:03:19]} {[%emt 00:02:12]} Rxf5
{[%clk 00:36:20]} {[%emt 00:00:01]} 33. Qe8+ {[%clk 00:03:16]} {[%emt
00:00:33]} Rf8 {[%clk 00:35:49]} {[%emt 00:01:00]} 34. Qxh5 {[%clk 00:03:39]}
{[%emt 00:00:08]} c6 {[%clk 00:33:37]} {[%emt 00:02:42]} 35. dxc6 {[%clk
00:03:12]} {[%emt 00:00:57]} bxc6 {[%clk 00:34:01]} {[%emt 00:00:06]} 36. Rd1
{[%clk 00:02:28]} {[%emt 00:01:13]} Qxb2 {[%clk 00:32:27]} {[%emt 00:02:04]} 37.
Qxg5+ {[%clk 00:02:52]} {[%emt 00:00:06]} Qg7 {[%clk 00:32:51]} {[%emt
00:00:06]} 38. Qxg7+ {[%clk 00:03:12]} {[%emt 00:00:11]} Kxg7 {[%clk 00:33:19]}
{[%emt 00:00:02]} 39. Rd7+ {[%clk 00:02:13]} {[%emt 00:01:29]} Kg6 {[%clk
00:33:31]} {[%emt 00:00:17]} 40. Ra7 {[%emt 00:01:22]} Rf5 {[%clk 00:33:52]} 41.
Ra6 {[%clk 00:01:17]} {[%emt 00:00:44]} Rc5 {[%clk 00:33:24]} {[%emt 00:00:57]}
42. a4 {[%clk 00:20:08]} {[%emt 00:11:40]} Kg5 {[%clk 01:03:16]} {[%emt
00:00:38]} 43. Ra8 {[%clk 00:19:32]} {[%emt 00:01:05]} Kh4 {[%clk 01:03:14]}
{[%emt 00:00:32]} 44. Kf2 {[%clk 00:18:09]} {[%emt 00:01:54]} Rc2+ {[%clk
01:03:27]} {[%emt 00:00:17]} 45. Ke1 {[%clk 00:17:30]} {[%emt 00:01:09]} Kxh3
{[%clk 01:01:47]} {[%emt 00:02:10]} 46. Rxa5 {[%clk 00:17:45]} {[%emt
00:00:14]} Kg3 {[%clk 01:02:10]} {[%emt 00:00:07]} 47. Kd1 {[%clk 00:15:30]}
{[%emt 00:02:46]} Ra2 {[%clk 01:01:04]} {[%emt 00:01:36]} 48. Rc5 {[%clk
00:13:57]} {[%emt 00:02:01]} Rxa4 {[%clk 01:01:28]} {[%emt 00:00:08]} 49. Rxc6
{[%clk 00:14:22]} {[%emt 00:00:04]} Kxf3 {[%clk 01:01:52]} {[%emt 00:00:06]} 50.
Ke1 {[%clk 00:10:31]} {[%emt 00:04:21]} Ra1+ {[%clk 01:01:51]} {[%emt
00:00:32]} 51. Kd2 {[%clk 00:10:57]} {[%emt 00:00:04]} Ra3 {[%clk 01:02:03]}
{[%emt 00:00:18]} 52. Rf6 {[%clk 00:10:10]} {[%emt 00:01:17]} Re3 {[%clk
01:01:53]} {[%emt 00:00:40]} 53. Rf8 {[%clk 00:09:41]} {[%emt 00:00:58]} Re4
{[%clk 01:01:24]} {[%emt 00:00:59]} 54. Kd3 {[%clk 00:09:10]} {[%emt 00:01:01]}
Ra4 {[%clk 01:01:48]} {[%emt 00:00:07]} 55. Rf7 {[%clk 00:08:04]} {[%emt
00:01:36]} Kf2 {[%clk 01:01:22]} {[%emt 00:00:55]} 56. Rf8 {[%clk 00:07:17]}
{[%emt 00:01:17]} Ra3+ {[%clk 01:01:27]} {[%emt 00:00:26]} 57. Ke4 {[%clk
00:06:11]} {[%emt 00:01:35]} Re3+ {[%clk 01:01:51]} {[%emt 00:00:06]} 58. Kd4
{[%clk 00:04:30]} {[%emt 00:02:11]} f3 {[%clk 01:02:14]} {[%emt 00:00:08]} 59.
Rg8 {[%clk 00:04:47]} {[%emt 00:00:12]} Ke2 {[%clk 01:01:50]} {[%emt 00:00:53]}
60. Ra8 {[%clk 00:04:42]} {[%emt 00:00:37]} f2 {[%clk 01:02:05]} {[%emt
00:00:14]} 61. Ra2+ {[%clk 00:05:08]} {[%emt 00:00:05]} Kf3 {[%clk 01:02:31]}
{[%emt 00:00:03]} 62. Ra8 {[%clk 00:05:32]} {[%emt 00:00:06]} Re4+ {[%clk
01:02:35]} {[%emt 00:00:26]} 63. Kd5 {[%clk 00:05:52]} {[%emt 00:00:10]} f1=Q
{[%clk 01:02:55]} {[%emt 00:00:10]} 0-1

[Event "NJSK 2023 Jeugd B"]
[Site "Almelo, Netherlands"]
[Date "2023.05.06"]
[Round "7.8"]
[White "Niemeijer, Leon"]
[Black "Veraart, Jan"]
[Result "1/2-1/2"]
[TimeControl "90min/40moves + 30min + 30sec/move"]
[WhiteElo "1903"]
[BlackElo "1560"]

1. d4 {[%clk 01:30:58]} {[%emt 00:00:03]} d5 {[%clk 01:30:57]} {[%emt
00:00:04]} 2. c4 {[%clk 01:31:24]} {[%emt 00:00:03]} e6 {[%clk 01:31:23]}
{[%emt 00:00:04]} 3. Nf3 {[%clk 01:31:48]} {[%emt 00:00:06]} Nf6 {[%clk
01:31:49]} {[%emt 00:00:03]} 4. g3 {[%clk 01:32:14]} {[%emt 00:00:04]} Bb4+
{[%clk 01:32:03]} {[%emt 00:00:15]} 5. Bd2 {[%clk 01:32:39]} {[%emt 00:00:06]}
a5 {[%clk 01:32:28]} {[%emt 00:00:05]} 6. Bg2 {[%clk 01:32:53]} {[%emt
00:00:16]} O-O {[%clk 01:32:39]} {[%emt 00:00:19]} 7. O-O {[%clk 01:33:15]}
{[%emt 00:00:07]} dxc4 {[%clk 01:32:50]} {[%emt 00:00:20]} 8. Bxb4 {[%clk
01:32:37]} {[%emt 00:01:08]} axb4 {[%clk 01:32:31]} {[%emt 00:00:49]} 9. Ne5
{[%clk 01:33:01]} {[%emt 00:00:06]} c3 {[%clk 01:18:17]} {[%emt 00:14:44]} 10.
bxc3 {[%clk 01:31:11]} {[%emt 00:02:20]} bxc3 {[%clk 01:17:36]} {[%emt
00:01:12]} 11. Nxc3 {[%clk 01:31:36]} {[%emt 00:00:04]} c6 {[%clk 01:17:55]}
{[%emt 00:00:11]} 12. e3 {[%clk 01:31:09]} {[%emt 00:00:58]} Nbd7 {[%clk
01:17:51]} {[%emt 00:00:33]} 13. Nd3 {[%clk 01:28:26]} {[%emt 00:03:13]} Ra3
{[%clk 01:14:00]} {[%emt 00:04:21]} 14. Nb1 {[%clk 01:22:10]} {[%emt 00:06:46]}
Ra5 {[%clk 01:12:01]} {[%emt 00:02:26]} 15. a4 {[%clk 01:21:45]} {[%emt
00:00:58]} e5 {[%clk 00:52:07]} {[%emt 00:20:23]} 16. Nd2 {[%clk 01:17:19]}
{[%emt 00:04:57]} exd4 {[%clk 00:51:35]} {[%emt 00:01:03]} 17. Nb3 {[%clk
01:17:45]} {[%emt 00:00:03]} Ra8 {[%clk 00:45:19]} {[%emt 00:06:45]} 18. Nxd4
{[%clk 01:17:47]} {[%emt 00:00:28]} Qa5 {[%clk 00:44:17]} {[%emt 00:01:32]} 19.
Qc2 {[%clk 01:04:08]} {[%emt 00:14:10]} Nd5 {[%clk 00:19:59]} {[%emt 00:24:47]}
20. Nb3 {[%clk 01:01:04]} {[%emt 00:03:35]} Qd8 {[%clk 00:18:26]} {[%emt
00:02:03]} 21. Rfd1 {[%clk 00:55:50]} {[%emt 00:05:44]} Qg5 {[%clk 00:13:27]}
{[%emt 00:05:26]} 22. h4 {[%clk 00:51:34]} {[%emt 00:04:49]} Qh5 {[%clk
00:13:50]} {[%emt 00:00:07]} 23. Bxd5 {[%clk 00:48:05]} {[%emt 00:03:59]} cxd5
{[%clk 00:11:50]} {[%emt 00:02:30]} 24. Nf4 {[%clk 00:48:33]} {[%emt 00:00:02]}
Qf3 {[%clk 00:10:55]} {[%emt 00:01:25]} 25. Nd2 {[%clk 00:40:10]} {[%emt
00:08:53]} Qg4 {[%clk 00:10:39]} {[%emt 00:00:45]} 26. Nxd5 {[%clk 00:40:21]}
{[%emt 00:00:20]} Ne5 {[%clk 00:10:18]} {[%emt 00:00:49]} 27. Ne7+ {[%clk
00:36:31]} {[%emt 00:04:22]} Kh8 {[%clk 00:10:44]} {[%emt 00:00:02]} 28. Nxc8
{[%clk 00:36:59]} {[%emt 00:00:04]} Rfxc8 {[%clk 00:10:53]} {[%emt 00:00:21]}
29. Qe4 {[%clk 00:37:16]} {[%emt 00:00:13]} Qxe4 {[%clk 00:10:27]} {[%emt
00:00:55]} 30. Nxe4 {[%clk 00:37:45]} {[%emt 00:00:01]} Rc4 {[%clk 00:09:32]}
{[%emt 00:01:25]} 31. Nd6 {[%clk 00:38:10]} {[%emt 00:00:07]} Rcxa4 {[%clk
00:09:21]} {[%emt 00:00:40]} 32. Rxa4 {[%clk 00:38:03]} {[%emt 00:00:38]} Rxa4
{[%clk 00:09:49]} {[%emt 00:00:01]} 33. Nxb7 {[%clk 00:30:16]} {[%emt
00:08:16]} g6 {[%clk 00:04:48]} {[%emt 00:05:31]} 34. Kg2 {[%clk 00:21:26]}
{[%emt 00:09:21]} h5 {[%clk 00:03:50]} {[%emt 00:01:27]} 35. Nd6 {[%clk
00:17:47]} {[%emt 00:04:10]} Ra7 {[%clk 00:02:46]} {[%emt 00:01:33]} 36. Rd4
{[%clk 00:16:42]} {[%emt 00:01:35]} Ng4 {[%clk 00:02:33]} {[%emt 00:00:42]} 37.
Nc4 {[%clk 00:16:59]} {[%emt 00:00:15]} Re7 {[%clk 00:02:05]} {[%emt 00:00:57]}
38. Kf3 {[%clk 00:14:30]} {[%emt 00:02:59]} Ne5+ {[%clk 00:01:31]} {[%emt
00:01:04]} 39. Nxe5 {[%clk 00:14:48]} {[%emt 00:00:12]} Rxe5 {[%clk 00:02:00]}
40. e4 {[%clk 00:13:30]} {[%emt 00:01:49]} Ra5 {[%clk 00:01:16]} {[%emt
00:01:13]} 41. Kf4 {[%clk 00:08:07]} {[%emt 00:05:53]} Kg7 {[%clk 00:28:24]}
{[%emt 00:03:22]} 42. e5 {[%clk 00:34:43]} {[%emt 00:03:55]} Ra1 {[%clk
00:27:07]} {[%emt 00:01:46]} 43. f3 {[%clk 00:33:12]} {[%emt 00:02:01]} Re1
{[%clk 00:24:33]} {[%emt 00:03:03]} 44. Re4 {[%clk 00:30:17]} {[%emt 00:03:27]}
Ra1 {[%clk 00:23:56]} {[%emt 00:01:06]} 45. Rd4 {[%clk 00:27:26]} {[%emt
00:03:22]} Re1 {[%clk 00:23:59]} {[%emt 00:00:26]} 46. Rd5 {[%clk 00:26:35]}
{[%emt 00:01:22]} Re2 {[%clk 00:18:59]} {[%emt 00:05:30]} 47. g4 {[%clk
00:25:29]} {[%emt 00:01:36]} hxg4 {[%clk 00:19:07]} {[%emt 00:00:21]} 48. Kxg4
{[%clk 00:22:47]} {[%emt 00:03:13]} Re1 {[%clk 00:18:46]} {[%emt 00:00:50]} 49.
f4 {[%clk 00:21:49]} {[%emt 00:01:29]} Rg1+ {[%clk 00:17:28]} {[%emt 00:01:47]}
50. Kf3 {[%clk 00:22:12]} {[%emt 00:00:07]} Rh1 {[%clk 00:16:22]} {[%emt
00:01:35]} 51. Rd7 {[%clk 00:20:34]} {[%emt 00:02:10]} Kf8 {[%clk 00:16:07]}
{[%emt 00:00:44]} 52. Kg3 {[%clk 00:20:23]} {[%emt 00:00:41]} Rg1+ {[%clk
00:16:15]} {[%emt 00:00:22]} 53. Kf3 {[%clk 00:20:14]} {[%emt 00:00:40]} Rh1
{[%clk 00:16:31]} {[%emt 00:00:13]} 54. Kg3 {[%clk 00:15:39]} {[%emt 00:05:05]}
Rg1+ {[%clk 00:16:53]} {[%emt 00:00:07]} 55. Kf3 {[%clk 00:15:22]} {[%emt
00:00:48]} 1/2-1/2